fUSD/lending_fUSD_20240518
["ID","MTS","AMOUNT","RATE_DAILY","PERIOD"]
[327372740,1716027056424,-500.0,0.00036438,9]
[327372741,1716027056433,-500.0,0.00036438,9]
[327372742,1716027056442,-500.0,0.00036438,9]
[327372743,1716027056451,-500.0,0.00036438,9]
[327372744,1716027056460,-4169.76,0.00036438,9]
[327372745,1716027056470,-500.0,0.00036438,9]
[327372746,1716027056479,-2844.7,0.00036438,9]
[327372747,1716027056488,-500.0,0.00036438,9]
[327372748,1716027056497,-500.0,0.00036438,9]
[327372749,1716027056506,-500.0,0.00036438,9]
[327372750,1716027056516,-500.0,0.00036438,9]
[327372751,1716027056525,-500.0,0.00036438,9]
[327372752,1716027056535,-500.0,0.00036438,9]
[327372753,1716027056545,-500.0,0.00036438,9]
[327372754,1716027056555,-500.0,0.00036438,9]
[327372755,1716027056565,-500.0,0.00036438,9]
[327372756,1716027056574,-500.0,0.00036438,9]
[327372757,1716027056584,-1269.4,0.00036438,9]
[327372758,1716027056593,-500.0,0.00036438,9]
[327372759,1716027056603,-500.0,0.00036438,9]
[327372760,1716027056612,-500.0,0.00036438,9]
[327372761,1716027056622,-500.0,0.00036438,9]
[327372762,1716027056632,-500.0,0.00036438,9]
[327372763,1716027056642,-500.0,0.00036438,9]
[327372764,1716027056651,-500.0,0.00036438,9]
[327372765,1716027056660,-500.0,0.00036438,9]
[327372766,1716027056670,-3069.88,0.00036438,9]
[327372767,1716027056679,-500.0,0.00036438,9]
[327372768,1716027056689,-299.81721202,0.00036438,9]
[327372769,1716027056698,-535.06,0.00036438,9]
[327372770,1716027056706,-540.41,0.00036438,9]
[327372771,1716027056716,-500.0,0.00036438,9]
[327372772,1716027056725,-4030.13,0.00036438,9]
[327372773,1716027056734,-500.0,0.00036438,9]
[327372774,1716027056744,-646.59,0.00036438,9]
[327372775,1716027056905,-500.0,0.00036438,9]
[327372776,1716027056914,-498.91555139,0.00036438,9]
[327372777,1716027056923,-500.0,0.00036438,9]
[327372778,1716027056932,-682.05,0.00036438,9]
[327372779,1716027056942,-500.0,0.00036438,9]
[327372780,1716027056951,-500.0,0.00036438,9]
[327372781,1716027056961,-500.0,0.00036438,9]
[327372782,1716027056970,-500.0,0.00036438,9]
[327372783,1716027056979,-500.0,0.00036438,9]
[327372784,1716027056990,-500.0,0.00036438,9]
[327372785,1716027056999,-500.0,0.00036438,9]
[327372786,1716027057009,-500.0,0.00036438,9]
[327372787,1716027057019,-3657.87,0.00036438,9]
[327372788,1716027057028,-500.0,0.00036438,9]
[327372789,1716027057038,-500.0,0.00036438,9]
[327372790,1716027057047,-500.0,0.00036438,9]
[327372791,1716027057056,-407.43687709,0.00036438,9]
[327372792,1716027057065,-4403.65,0.00036438,9]
[327372793,1716027057075,-500.0,0.00036438,9]
[327372794,1716027057086,-500.0,0.00036438,9]
[327372795,1716027057096,-3279.76,0.00036438,9]
[327372796,1716027057106,-500.0,0.00036438,9]
[327372797,1716027057115,-500.0,0.00036438,9]
[327372798,1716027057126,-500.0,0.00036438,9]
[327372799,1716027057135,-500.0,0.00036438,9]
[327372800,1716027057145,-500.0,0.00036438,9]
[327372801,1716027057154,-500.0,0.00036438,9]
[327372802,1716027057166,-500.0,0.00036438,9]
[327372803,1716027057176,-500.0,0.00036438,9]
[327372804,1716027057185,-500.0,0.00036438,9]
[327372805,1716027057195,-500.0,0.00036438,9]
[327372806,1716027057204,-151.0,0.00036438,7]
[327372807,1716027057213,-3229.76,0.00036438,9]
[327372808,1716027057223,-500.0,0.00036438,9]
[327372809,1716027057233,-500.0,0.00036438,9]
[327372810,1716027057242,-500.0,0.00036438,9]
[327372811,1716027057252,-163.498614,0.00036438,7]
[327372812,1716027057261,-500.0,0.00036438,9]
[327372813,1716027057271,-163.498614,0.00036438,7]
[327372814,1716027057281,-500.0,0.00036438,9]
[327372815,1716027057290,-500.0,0.00036438,9]
[327372816,1716027057300,-500.0,0.00036438,9]
[327372817,1716027057309,-500.0,0.00036438,9]
[327372818,1716027057318,-500.0,0.00036438,9]
[327372819,1716027057327,-574.36,0.00036438,9]
[327372820,1716027057337,-500.0,0.00036438,9]
[327372821,1716027057346,-500.0,0.00036438,9]
[327372822,1716027057355,-500.0,0.00036438,9]
[327372823,1716027057364,-151.0,0.00036438,7]
[327372824,1716027057375,-500.0,0.00036438,9]
[327372825,1716027057384,-500.0,0.00036438,9]
[327372826,1716027057394,-500.0,0.00036438,9]
[327372827,1716027057403,-500.0,0.00036438,9]
[327372828,1716027057412,-151.0,0.00036438,7]
[327372829,1716027057421,-365.74209719,0.00036438,9]
[327372830,1716027057431,-500.0,0.00036438,9]
[327372831,1716027057441,-547.24,0.00036438,9]
[327372832,1716027057451,-500.0,0.00036438,9]
[327372833,1716027057460,-151.0,0.00036438,7]
[327372834,1716027057469,-151.0,0.00036438,7]
[327372835,1716027057479,-500.0,0.00036438,9]
[327372836,1716027057488,-500.0,0.00036438,9]
[327372837,1716027057497,-500.0,0.00036438,9]
[327372838,1716027057506,-778.58,0.00036438,9]
[327372839,1716027057515,-541.06,0.00036438,9]
[327372840,1716027057525,-500.0,0.00036438,9]
[327372841,1716027057534,-785.52,0.00036438,9]
[327372842,1716027057543,-500.0,0.00036438,9]
[327372843,1716027057553,-867.73,0.00036438,9]
[327372844,1716027057563,-500.0,0.00036438,9]
[327372845,1716027057572,-151.0,0.00036438,7]
[327372846,1716027057582,-500.0,0.00036438,9]
[327372847,1716027057590,-500.0,0.00036438,9]
[327372848,1716027057600,-500.0,0.00036438,9]
[327372849,1716027057609,-500.0,0.00036438,9]
[327372850,1716027057619,-500.0,0.00036438,9]
[327372851,1716027057628,-500.0,0.00036438,9]
[327372852,1716027057637,-500.0,0.00036438,9]
[327372853,1716027057647,-500.0,0.00036438,9]
[327372854,1716027057656,-500.0,0.00036438,9]
[327372855,1716027057665,-151.0,0.00036438,7]
[327372856,1716027057675,-500.0,0.00036438,9]
[327372857,1716027057685,-500.0,0.00036438,9]
[327372858,1716027057694,-151.0,0.00036438,7]
[327372859,1716027057703,-198.07,0.00036438,9]
[327372860,1716027057713,-152.058772,0.00036438,7]
[327372861,1716027057723,-500.0,0.00036438,9]
[327372862,1716027057732,-500.0,0.00036438,9]
[327372863,1716027057741,-500.0,0.00036438,9]
[327372864,1716027057751,-500.0,0.00036438,9]
[327372865,1716027057760,-151.0,0.00036438,7]
[327372866,1716027057770,-500.0,0.00036438,9]
[327372867,1716027057779,-151.0,0.00036438,7]
[327372868,1716027057788,-500.0,0.00036438,9]
[327372869,1716027057797,-363.38806043,0.00036438,9]
[327372870,1716027057806,-500.0,0.00036438,9]
[327372871,1716027057815,-849.85,0.00036438,9]
[327372872,1716027057825,-151.0,0.00036438,7]
[327372873,1716027057834,-151.0,0.00036438,7]
[327372874,1716027057843,-318.03,0.00036438,9]
[327372875,1716027057852,-500.0,0.00036438,9]
[327372876,1716027057861,-500.0,0.00036438,9]
[327372877,1716027057870,-151.0,0.00036438,7]
[327372878,1716027057879,-3765.94,0.00036438,9]
[327372879,1716027057888,-500.0,0.00036438,9]
[327372880,1716027057897,-575.60685848,0.00036438,9]
[327372881,1716027057906,-151.0,0.00036438,7]
[327372882,1716027057915,-151.0,0.00036438,7]
[327372883,1716027057924,-500.0,0.00036438,9]
[327372884,1716027057933,-151.0,0.00036438,7]
[327372885,1716027057942,-151.0,0.00036438,7]
[327372886,1716027057951,-500.0,0.00036438,9]
[327372887,1716027057961,-151.0,0.00036438,7]
[327372888,1716027057971,-3754.91,0.00036438,9]
[327372889,1716027057980,-500.0,0.00036438,9]
[327372890,1716027057989,-500.0,0.00036438,9]
[327372891,1716027057999,-506.88508645,0.00036438,9]
[327372892,1716027058007,-500.0,0.00036438,9]
[327372893,1716027058016,-500.0,0.00036438,9]
[327372894,1716027058025,-5415.09,0.00036438,9]
[327372895,1716027058035,-500.0,0.00036438,9]
[327372896,1716027058044,-151.0,0.00036438,7]
[327372897,1716027058053,-500.0,0.00036438,9]
[327372898,1716027058062,-151.0,0.00036438,7]
[327372899,1716027058071,-500.0,0.00036438,9]
[327372900,1716027058080,-500.0,0.00036438,9]
[327372901,1716027058094,-151.0,0.00036438,7]
[327372902,1716027058103,-9278.18,0.00036438,9]
[327372903,1716027058112,-500.0,0.00036438,9]
[327372904,1716027058122,-151.0,0.00036438,7]
[327372905,1716027058133,-500.0,0.00036438,9]
[327372906,1716027058142,-3867.98,0.00036438,9]
[327372907,1716027058151,-500.0,0.00036438,9]
[327372908,1716027058161,-712.57,0.00036438,9]
[327372909,1716027058172,-500.0,0.00036438,9]
[327372910,1716027058182,-500.0,0.00036438,9]
[327372911,1716027058192,-500.0,0.00036438,9]
[327372912,1716027058201,-155.554527,0.00036438,7]
[327372913,1716027058212,-500.0,0.00036438,9]
[327372914,1716027058221,-500.0,0.00036438,9]
[327372915,1716027058231,-500.0,0.00036438,9]
[327372916,1716027058241,-435.313561,0.00036438,7]
[327372917,1716027058251,-500.0,0.00036438,9]
[327372918,1716027058262,-500.0,0.00036438,9]
[327372919,1716027058272,-500.0,0.00036438,9]
[327372920,1716027058280,-2338.72,0.00036438,9]
[327372921,1716027058290,-435.313561,0.00036438,7]
[327372922,1716027058299,-220.590782,0.00036438,7]
[327372923,1716027058308,-500.0,0.00036438,9]
[327372924,1716027058318,-4259.86,0.00036438,9]
[327372925,1716027058327,-220.590782,0.00036438,7]
[327372926,1716027058335,-500.0,0.00036438,9]
[327372927,1716027058345,-151.0,0.00036438,7]
[327372928,1716027058354,-500.0,0.00036438,9]
[327372930,1716027058363,-151.0,0.00036438,7]
[327372931,1716027058372,-500.0,0.00036438,9]
[327372932,1716027058382,-500.0,0.00036438,9]
[327372933,1716027058391,-500.0,0.00036438,9]
[327372934,1716027058400,-500.0,0.00036438,7]
[327372935,1716027058409,-533.12033638,0.00036438,9]
[327372936,1716027058418,-1277.84,0.00036438,9]
[327372937,1716027058427,-151.0,0.00036438,7]
[327372938,1716027058436,-500.0,0.00036438,9]
[327372939,1716027058445,-500.0,0.00036438,9]
[327372940,1716027058455,-151.0,0.00036438,7]
[327372941,1716027058464,-500.0,0.00036438,9]
[327372942,1716027058472,-500.0,0.00036438,9]
[327372943,1716027058482,-500.0,0.00036438,9]
[327372944,1716027058491,-500.22,0.00036438,9]
[327372945,1716027058499,-500.0,0.00036438,9]
[327372946,1716027058509,-793.67,0.00036438,9]
[327372947,1716027058518,-500.0,0.00036438,9]
[327372948,1716027058527,-500.0,0.00036438,9]
[327372949,1716027058535,-1024.88,0.00036438,9]
[327372950,1716027058544,-500.0,0.00036438,9]
[327372951,1716027058553,-500.0,0.00036438,9]
[327372952,1716027058562,-289.20344612,0.00036438,9]
[327372953,1716027058571,-500.0,0.00036438,9]
[327372954,1716027058580,-5514.99,0.00036438,9]
[327372955,1716027058589,-643.52,0.00036438,9]
[327372956,1716027058598,-500.0,0.00036438,9]
[327372957,1716027058607,-546.42,0.00036438,9]
[327372958,1716027058615,-500.0,0.00036438,9]
[327372959,1716027058624,-715.335731,0.00036438,7]
[327372960,1716027058633,-500.0,0.00036438,9]
[327372961,1716027058642,-356.97258603,0.00036438,9]
[327372962,1716027058651,-715.335731,0.00036438,7]
[327372963,1716027058660,-915.4,0.00036438,9]
[327372964,1716027058671,-616.72,0.00036438,9]
[327372965,1716027058681,-4463.14,0.00036438,9]
[327372966,1716027058690,-500.0,0.00036438,9]
[327372967,1716027058699,-500.0,0.00036438,9]
[327372968,1716027058708,-731.29,0.00036438,9]
[327372969,1716027058717,-151.0,0.00036438,7]
[327372970,1716027058726,-314.83,0.00036438,9]
[327372971,1716027058735,-151.0,0.00036438,7]
[327372972,1716027058744,-500.0,0.00036438,9]
[327372973,1716027058753,-500.0,0.00036438,9]
[327372974,1716027058762,-414.85542813,0.00036438,9]
[327372975,1716027058771,-500.0,0.00036438,9]
[327372976,1716027058781,-500.0,0.00036438,9]
[327372977,1716027058790,-500.0,0.00036438,9]
[327372978,1716027058800,-500.0,0.00036438,9]
[327372979,1716027058809,-500.0,0.00036438,9]
[327372980,1716027058817,-500.0,0.00036438,9]
[327372981,1716027058827,-500.0,0.00036438,9]
[327372982,1716027058836,-246.59966,0.00036438,7]
[327372983,1716027058845,-1370.65,0.00036438,9]
[327372984,1716027058855,-500.0,0.00036438,9]
[327372985,1716027058865,-2258.02,0.00036438,9]
[327372986,1716027058874,-500.0,0.00036438,9]
[327372987,1716027058883,-246.59966,0.00036438,7]
[327372988,1716027058892,-722.23,0.00036438,9]
[327372989,1716027058901,-500.0,0.00036438,9]
[327372990,1716027058911,-500.0,0.00036438,9]
[327372991,1716027058920,-500.0,0.00036438,9]
[327372992,1716027058929,-297.925572,0.00036438,7]
[327372993,1716027058938,-522.73,0.00036438,9]
[327372994,1716027058947,-500.0,0.00036438,9]
[327372995,1716027058956,-500.0,0.00036438,9]
[327372996,1716027058965,-151.0,0.00036438,7]
[327372997,1716027058974,-500.0,0.00036438,9]
[327372998,1716027058983,-151.0,0.00036438,7]
[327372999,1716027058992,-500.0,0.00036438,9]
[327373000,1716027059001,-151.0,0.00036438,7]
[327373001,1716027059010,-500.0,0.00036438,9]
[327373002,1716027059019,-221.04789818,0.00036438,9]
[327373003,1716027059028,-500.0,0.00036438,9]
[327373004,1716027059037,-500.0,0.00036438,9]
[327373005,1716027059046,-568.61,0.00036438,9]
[327373006,1716027059055,-500.0,0.00036438,9]
[327373007,1716027059064,-205.75005396,0.00036438,9]
[327373008,1716027059073,-447.05021,0.00036438,7]
[327373009,1716027059082,-695.23,0.00036438,9]
[327373010,1716027059095,-500.0,0.00036438,9]
[327373011,1716027059104,-500.0,0.00036438,9]
[327373012,1716027059113,-500.0,0.00036438,9]
[327373013,1716027059122,-1052.06,0.00036438,9]
[327373014,1716027059132,-447.05021,0.00036438,7]
[327373015,1716027059141,-151.0,0.00036438,7]
[327373016,1716027059150,-500.0,0.00036438,9]
[327373017,1716027059159,-533.61,0.00036438,9]
[327373018,1716027059169,-500.0,0.00036438,9]
[327373019,1716027059178,-500.0,0.00036438,9]
[327373020,1716027059187,-500.0,0.00036438,9]
[327373021,1716027059196,-422.753091,0.00036438,7]
[327373022,1716027059205,-500.0,0.00036438,9]
[327373023,1716027059215,-500.0,0.00036438,9]
[327373024,1716027059224,-783.35,0.00036438,9]
[327373025,1716027059234,-422.753091,0.00036438,7]
[327373026,1716027059243,-690.29,0.00036438,9]
[327373027,1716027059253,-500.0,0.00036438,9]
[327373028,1716027059262,-525.98,0.00036438,9]
[327373029,1716027059272,-500.0,0.00036438,9]
[327373030,1716027059282,-629.44,0.00036438,9]
[327373031,1716027059292,-500.0,0.00036438,9]
[327373032,1716027059301,-500.0,0.00036438,9]
[327373033,1716027059311,-504.90508843,0.00036438,9]
[327373034,1716027059320,-506.3789738,0.00036438,9]
[327373035,1716027059329,-934.8,0.00036438,9]
[327373036,1716027059338,-251.11341,0.00036438,7]
[327373037,1716027059348,-500.0,0.00036438,9]
[327373038,1716027059356,-500.0,0.00036438,9]
[327373039,1716027059366,-251.11341,0.00036438,7]
[327373040,1716027059375,-500.0,0.00036438,9]
[327373041,1716027059384,-2042.79,0.00036438,9]
[327373042,1716027059393,-690.88,0.00036438,9]
[327373043,1716027059402,-500.0,0.00036438,9]
[327373044,1716027059411,-514.89,0.00036438,9]
[327373045,1716027059420,-500.0,0.00036438,9]
[327373046,1716027059429,-500.0,0.00036438,9]
[327373047,1716027059439,-1319.08,0.00036438,9]
[327373048,1716027059447,-500.0,0.00036438,9]
[327373049,1716027059456,-423.524968,0.00036438,7]
[327373050,1716027059465,-500.0,0.00036438,9]
[327373051,1716027059475,-500.0,0.00036438,9]
[327373052,1716027059484,-1381.199649,0.00036438,7]
[327373053,1716027059493,-423.524968,0.00036438,7]
[327373054,1716027059502,-500.0,0.00036438,9]
[327373055,1716027059511,-500.0,0.00036438,9]
[327373056,1716027059520,-546.09,0.00036438,9]
[327373057,1716027059529,-151.0,0.00036438,7]
[327373058,1716027059538,-1381.199649,0.00036438,7]
[327373059,1716027059548,-3803.72,0.00036438,9]
[327373060,1716027059557,-500.0,0.00036438,9]
[327373061,1716027059566,-593.45,0.00036438,9]
[327373062,1716027059575,-500.0,0.00036438,9]
[327373063,1716027059585,-797.77,0.00036438,9]
[327373064,1716027059594,-2284.56,0.00036438,9]
[327373065,1716027059603,-500.0,0.00036438,9]
[327373066,1716027059612,-538.34,0.00036438,9]
[327373067,1716027059621,-500.0,0.00036438,9]
[327373068,1716027059630,-500.0,0.00036438,9]
[327373069,1716027059639,-343.398027,0.00036438,7]
[327373070,1716027059648,-827.64,0.00036438,9]
[327373072,1716027059800,-500.0,0.00036438,9]
[327373073,1716027059810,-500.0,0.00036438,9]
[327373074,1716027059819,-832.88,0.00036438,9]
[327373075,1716027059828,-2188.52,0.00036438,9]
[327373076,1716027059837,-343.398027,0.00036438,7]
[327373077,1716027059846,-500.0,0.00036438,9]
[327373078,1716027059855,-796.82,0.00036438,9]
[327373079,1716027059864,-815.72,0.00036438,9]
[327373080,1716027059873,-151.0,0.00036438,7]
[327373081,1716027059883,-500.0,0.00036438,9]
[327373082,1716027059892,-500.0,0.00036438,9]
[327373083,1716027059902,-328.52393,0.00036438,7]
[327373084,1716027059911,-520.49162837,0.00036438,9]
[327373085,1716027059920,-500.0,0.00036438,9]
[327373086,1716027059929,-500.0,0.00036438,9]
[327373087,1716027059939,-151.0,0.00036438,7]
[327373088,1716027059947,-500.0,0.00036438,9]
[327373089,1716027059957,-752.83,0.00036438,9]
[327373090,1716027059965,-500.0,0.00036438,9]
[327373091,1716027059974,-864.81,0.00036438,9]
[327373092,1716027059983,-932.675204,0.00036438,7]
[327373093,1716027059992,-328.52393,0.00036438,7]
[327373094,1716027060002,-1041.01,0.00036438,9]
[327373095,1716027060012,-500.0,0.00036438,9]
[327373096,1716027060021,-500.0,0.00036438,9]
[327373097,1716027060030,-470.35407719,0.00036438,9]
[327373098,1716027060039,-1424.33,0.00036438,9]
[327373099,1716027060049,-151.0,0.00036438,7]
[327373100,1716027060058,-416.28082086,0.00036438,9]
[327373101,1716027060067,-196.46888,0.00036438,7]
[327373102,1716027060075,-932.675204,0.00036438,7]
[327373103,1716027060087,-500.0,0.00036438,9]
[327373104,1716027060097,-500.0,0.00036438,9]
[327373105,1716027060106,-618.93875623,0.00036438,9]
[327373106,1716027060115,-500.0,0.00036438,9]
[327373107,1716027060124,-1362.23,0.00036438,9]
[327373108,1716027060134,-151.0,0.00036438,7]
[327373109,1716027060143,-500.0,0.00036438,9]
[327373110,1716027060152,-151.0,0.00036438,7]
[327373111,1716027060162,-196.46888,0.00036438,7]
[327373112,1716027060171,-500.0,0.00036438,9]
[327373113,1716027060180,-500.0,0.00036438,9]
[327373114,1716027060190,-939.57,0.00036438,9]
[327373115,1716027060200,-1087.06,0.00036438,9]
[327373116,1716027060209,-500.0,0.00036438,9]
[327373117,1716027060218,-500.0,0.00036438,9]
[327373118,1716027060227,-500.0,0.00036438,9]
[327373119,1716027060236,-500.0,0.00036438,9]
[327373120,1716027060245,-500.0,0.00036438,9]
[327373121,1716027060254,-151.0,0.00036438,7]
[327373122,1716027060264,-696.54,0.00036438,9]
[327373123,1716027060273,-1289.9,0.00036438,9]
[327373124,1716027060282,-500.0,0.00036438,9]
[327373125,1716027060291,-3041.74,0.00036438,9]
[327373126,1716027060300,-559.66,0.00036438,9]
[327373127,1716027060310,-825.26,0.00036438,9]
[327373128,1716027060319,-151.0,0.00036438,7]
[327373129,1716027060327,-512.07217936,0.00036438,9]
[327373130,1716027060337,-500.0,0.00036438,9]
[327373131,1716027060346,-500.0,0.00036438,9]
[327373132,1716027060354,-759.62,0.00036438,9]
[327373133,1716027060363,-629.52,0.00036438,9]
[327373134,1716027060373,-500.0,0.00036438,9]
[327373135,1716027060382,-534.49,0.00036438,9]
[327373136,1716027060392,-275.024972,0.00036438,7]
[327373137,1716027060402,-570.27,0.00036438,9]
[327373138,1716027060411,-500.0,0.00036438,9]
[327373139,1716027060420,-275.024972,0.00036438,7]
[327373140,1716027060429,-500.0,0.00036438,9]
[327373141,1716027060440,-151.0,0.00036438,7]
[327373142,1716027060450,-500.0,0.00036438,9]
[327373143,1716027060459,-912.9,0.00036438,9]
[327373144,1716027060468,-697.12,0.00036438,9]
[327373145,1716027060477,-549.38,0.00036438,9]
[327373146,1716027060487,-500.0,0.00036438,9]
[327373147,1716027060496,-500.0,0.00036438,9]
[327373148,1716027060505,-500.0,0.00036438,9]
[327373149,1716027060514,-4223.91,0.00036438,9]
[327373150,1716027060523,-151.0,0.00036438,7]
[327373151,1716027060532,-1065.59,0.00036438,9]
[327373152,1716027060541,-631.5,0.00036438,9]
[327373153,1716027060550,-545.68,0.00036438,9]
[327373154,1716027060559,-500.0,0.00036438,9]
[327373155,1716027060569,-151.0,0.00036438,7]
[327373156,1716027060577,-500.0,0.00036438,9]
[327373157,1716027060587,-270.180676,0.00036438,7]
[327373158,1716027060596,-500.0,0.00036438,9]
[327373159,1716027060606,-500.0,0.00036438,9]
[327373160,1716027060615,-270.180676,0.00036438,7]
[327373161,1716027060624,-500.0,0.00036438,9]
[327373162,1716027060633,-610.38,0.00036438,9]
[327373163,1716027060642,-3746.55,0.00036438,9]
[327373164,1716027060651,-838.53,0.00036438,9]
[327373165,1716027060660,-500.0,0.00036438,9]
[327373166,1716027060669,-500.0,0.00036438,9]
[327373167,1716027060678,-500.0,0.00036438,9]
[327373168,1716027060687,-584.1,0.00036438,9]
[327373169,1716027060697,-500.0,0.00036438,9]
[327373170,1716027060706,-151.0,0.00036438,7]
[327373171,1716027060716,-732.68,0.00036438,9]
[327373172,1716027060725,-4471.01,0.00036438,9]
[327373173,1716027060734,-1692.03,0.00036438,9]
[327373174,1716027060743,-500.0,0.00036438,9]
[327373175,1716027060752,-1112.92,0.00036438,9]
[327373176,1716027060761,-500.0,0.00036438,9]
[327373177,1716027060770,-151.0,0.00036438,7]
[327373178,1716027060779,-500.0,0.00036438,9]
[327373179,1716027060787,-500.0,0.00036438,9]
[327373180,1716027060796,-618.04264868,0.00036438,9]
[327373181,1716027060805,-500.0,0.00036438,9]
[327373182,1716027060814,-500.0,0.00036438,9]
[327373183,1716027060823,-542.74,0.00036438,9]
[327373184,1716027060833,-500.0,0.00036438,9]
[327373185,1716027060842,-612.12,0.00036438,9]
[327373186,1716027060851,-163.84,0.00036533,120]
[327373187,1716027060859,-1152.06,0.00036711,9]
[327373188,1716027060869,-500.0,0.00036712,9]
[327373189,1716027060877,-500.0,0.00036712,9]
[327373190,1716027060886,-3858.95,0.00036712,9]
[327373191,1716027060895,-5237.91,0.00036712,9]
[327373192,1716027060904,-500.0,0.00036712,9]
[327373193,1716027060913,-327.5154977,0.00036712,9]
[327373194,1716027060922,-500.0,0.00036712,9]
[327373195,1716027060931,-500.0,0.00036712,9]
[327373196,1716027060941,-500.0,0.00036712,9]
[327373197,1716027060950,-500.0,0.00036712,9]
[327373198,1716027060959,-541.0,0.00036712,9]
[327373199,1716027060968,-525.08,0.00036712,9]
[327373200,1716027060977,-701.67,0.00036712,9]
[327373201,1716027060986,-500.0,0.00036712,9]
[327373202,1716027060995,-500.0,0.00036712,9]
[327373203,1716027061004,-3615.35,0.00036712,9]
[327373204,1716027061013,-500.0,0.00036712,9]
[327373205,1716027061022,-364.8,0.00036712,9]
[327373206,1716027061031,-500.0,0.00036712,9]
[327373207,1716027061040,-500.0,0.00036712,9]
[327373208,1716027061049,-762.31,0.00036712,9]
[327373209,1716027061059,-543.4,0.00036712,7]
[327373210,1716027061067,-500.0,0.00036712,9]
[327373211,1716027061077,-500.0,0.00036712,9]
[327373212,1716027061087,-500.0,0.00036712,9]
[327373213,1716027061099,-500.0,0.00036712,9]
[327373214,1716027061109,-500.0,0.00036712,9]
[327373215,1716027061118,-500.0,0.00036712,9]
[327373216,1716027061127,-724.11,0.00036712,9]
[327373217,1716027061138,-500.0,0.00036712,9]
[327373218,1716027061147,-808.58,0.00036712,9]
[327373219,1716027061157,-500.0,0.00036712,9]
[327373220,1716027061168,-500.0,0.00036712,9]
[327373221,1716027061177,-500.0,0.00036712,9]
[327373222,1716027061187,-500.0,0.00036712,9]
[327373223,1716027061197,-500.0,0.00036712,9]
[327373224,1716027061211,-500.0,0.00036712,9]
[327373225,1716027061220,-500.0,0.00036712,9]
[327373226,1716027061229,-500.0,0.00036712,9]
[327373227,1716027061239,-500.0,0.00036712,9]
[327373228,1716027061248,-631.73,0.00036712,9]
[327373229,1716027061257,-500.0,0.00036712,9]
[327373230,1716027061266,-579.25,0.00036712,9]
[327373231,1716027061275,-500.0,0.00036712,9]
[327373232,1716027061285,-500.0,0.00036712,9]
[327373233,1716027061294,-500.0,0.00036712,9]
[327373234,1716027061304,-565.14,0.00036712,9]
[327373235,1716027061313,-500.0,0.00036712,9]
[327373236,1716027061323,-715.53,0.00036712,9]
[327373237,1716027061335,-500.0,0.00036712,9]
[327373238,1716027061345,-500.0,0.00036712,9]
[327373239,1716027061354,-500.0,0.00036712,9]
[327373240,1716027061363,-500.0,0.00036712,9]
[327373241,1716027061373,-522.99,0.00036712,9]